bitfinex-derivatives/quotes_BTCF0:USTF0_20250602
["timestamp","ask_amount","ask_price","bid_price","bid_amount"]
[1748866610895,1.95530152,104050.0,104040.0,0.00987]
[1748866611302,1.80736726,104050.0,104040.0,0.00987]
[1748866611892,0.1921699,104030.0,104020.0,8e-08]
[1748866612191,0.1921699,104030.0,104000.0,0.006]
[1748866612192,0.2922068,104010.0,104000.0,0.006]
[1748866612392,1.49823532,104010.0,104000.0,0.006]
[1748866612605,0.1922253,104000.0,103990.0,0.00211559]
[1748866612809,0.89385956,104000.0,103990.0,0.00211559]
[1748866613008,1.0906053,104000.0,103990.0,0.19435939]
[1748866613301,1.33853956,104000.0,103990.0,0.19455939]
[1748866614001,0.89385956,104000.0,103990.0,0.19455939]
[1748866614200,0.89385956,104000.0,103990.0,0.23499378]
[1748866614201,1.33853956,104000.0,103990.0,0.23499378]
[1748866614397,1.33853956,104000.0,103990.0,0.26609378]
[1748866615108,1.33857956,104000.0,103990.0,0.26609378]
[1748866615403,1.33957956,104000.0,103990.0,0.26609378]
[1748866615608,1.33957956,104000.0,103990.0,0.25705939]
[1748866615909,1.33957956,104000.0,103990.0,0.25605939]
[1748866616402,1.41559944,104000.0,103990.0,0.22595939]
[1748866616810,0.97087944,104000.0,103990.0,0.22595939]
[1748866617005,0.97087944,104000.0,103990.0,0.25825939]
[1748866617399,0.97087944,104000.0,103990.0,0.26755898]
[1748866618002,0.72294518,104000.0,103990.0,0.26755898]
[1748866618204,0.80807944,104000.0,103990.0,0.26755898]
[1748866618599,0.83837944,104000.0,103990.0,0.26755898]
[1748866620415,0.93837944,104000.0,103990.0,0.25825939]
[1748866621111,0.93837944,104000.0,103990.0,0.25805939]
[1748866621312,0.93837944,104000.0,103990.0,0.25825939]
[1748866621617,0.79044518,104000.0,103990.0,0.25825939]
[1748866621916,0.93837944,104000.0,103990.0,0.25825939]
[1748866622799,0.93837944,104000.0,103990.0,0.06601559]
[1748866623013,0.93837944,104000.0,103990.0,0.25825939]
[1748866625113,0.93837944,104000.0,103990.0,0.25825919]
[1748866626412,0.93837944,104000.0,103990.0,0.00231559]
[1748866626616,0.1922616,103980.0,103970.0,0.2884001]
[1748866626919,0.7216,103980.0,103970.0,0.36013618]
[1748866627102,0.7216,103980.0,103970.0,0.80493618]
[1748866627310,0.36094371,103990.0,103980.0,0.1922616]
[1748866627604,0.34032097,103990.0,103980.0,0.2877616]
[1748866627809,0.70112097,103990.0,103980.0,0.2877616]
[1748866628416,0.50887797,103990.0,103980.0,0.2877616]
[1748866628613,0.70112067,103990.0,103980.0,0.2887616]
[1748866629303,0.00014371,103990.0,103980.0,1.29259812]
[1748866629512,0.00014371,103990.0,103980.0,1.14466386]
[1748866630112,1e-08,103990.0,103980.0,1.14466386]
[1748866630313,0.04952799,104000.0,103990.0,0.1922426]
[1748866630620,0.002,104010.0,104000.0,0.1922242]
[1748866630819,0.002,104010.0,104000.0,0.79605846]
[1748866631021,0.002,104010.0,104000.0,0.53140646]
[1748866631319,0.002,104010.0,104000.0,0.89220646]
[1748866632524,0.002,104010.0,104000.0,0.53140646]
[1748866632814,0.002,104010.0,104000.0,1.33736646]
[1748866633205,0.004,104010.0,104000.0,1.33736646]
[1748866633417,0.07842451,104020.0,104010.0,0.1922057]
[1748866633607,0.07842451,104020.0,104010.0,0.96389996]
[1748866634713,0.08242451,104020.0,104010.0,0.96489996]
[1748866635523,0.08542451,104020.0,104010.0,1.31535996]
[1748866635722,0.08542451,104020.0,104010.0,0.95455996]
[1748866636023,0.00414371,104020.0,104010.0,1.66149996]
[1748866636215,0.00614371,104020.0,104010.0,1.66149996]
[1748866636415,0.00414371,104020.0,104010.0,1.66049996]
[1748866638620,0.00414371,104020.0,104010.0,1.80843422]
[1748866639017,0.00414371,104020.0,104010.0,1.66049996]
[1748866639414,0.00414371,104020.0,104010.0,1.80843422]
[1748866642818,0.00414371,104020.0,104010.0,1.5125657]
[1748866643018,0.00414371,104020.0,104010.0,1.80843422]
[1748866644019,0.3938,104050.0,104020.0,0.0480427]
[1748866644214,0.0959,104050.0,104040.0,0.34008446]
[1748866644428,0.2880318,104050.0,104040.0,0.34008446]
[1748866644623,0.2880318,104050.0,104040.0,0.40478446]
[1748866644822,0.6488318,104050.0,104040.0,0.2568502]
[1748866645225,0.6488318,104050.0,104040.0,0.7033702]
[1748866645525,0.79676606,104050.0,104040.0,0.2970702]
[1748866645726,0.80276606,104050.0,104040.0,0.2970702]
[1748866646321,0.87951201,104050.0,104040.0,0.2980702]
[1748866646530,0.88551201,104050.0,104040.0,0.2980702]
[1748866647323,0.88551201,104050.0,104040.0,0.2990702]
[1748866647929,0.88551201,104050.0,104040.0,0.6407502]
[1748866648325,0.88551201,104050.0,104040.0,0.6407102]
[1748866650430,0.73757775,104050.0,104040.0,0.6496936]
[1748866650831,0.88551201,104050.0,104040.0,0.6496936]
[1748866651429,0.88551201,104050.0,104040.0,0.2033336]
[1748866651631,0.98551201,104050.0,104040.0,0.6403102]
[1748866651837,0.98551201,104050.0,104040.0,0.6405102]
[1748866652035,0.88551201,104050.0,104040.0,0.6405102]
[1748866652330,0.88551201,104050.0,104040.0,0.6403102]
[1748866652532,0.88551201,104050.0,104040.0,0.6403902]
[1748866654438,0.88551201,104050.0,104040.0,0.64945584]
[1748866659134,0.88551201,104050.0,104040.0,0.6403902]
[1748866659735,0.88151201,104050.0,104040.0,0.1933502]
[1748866659939,0.97851201,104050.0,104040.0,0.6379502]
[1748866660635,0.97851201,104050.0,104040.0,0.0002]
[1748866660829,1.12644627,104050.0,104040.0,0.0002]
[1748866661031,0.1921502,104040.0,104030.0,0.20167017]
[1748866661338,0.86398446,104040.0,104030.0,0.00014371]
[1748866661540,0.86398446,104040.0,104030.0,0.19231241]
[1748866662335,0.86498446,104040.0,104030.0,0.19231241]
[1748866662544,0.86698446,104040.0,104030.0,0.19231241]
[1748866663439,0.76698446,104040.0,104030.0,0.19231241]
[1748866664444,0.86698446,104040.0,104030.0,0.00014371]
[1748866664946,1.07443271,104040.0,104030.0,0.00014371]
[1748866665347,1.07443271,104040.0,104030.0,0.19231241]
[1748866665931,0.92649845,104040.0,104030.0,0.19231241]
[1748866666139,0.97443271,104040.0,104030.0,0.19231241]
[1748866666439,0.76698446,104040.0,104030.0,0.19231241]
[1748866666645,0.86698446,104040.0,104030.0,0.19231241]
[1748866667041,0.97443271,104040.0,104030.0,0.19231241]
[1748866667545,1.07443271,104040.0,104030.0,0.19231241]
[1748866668045,1.07443271,104040.0,104030.0,0.00014371]
[1748866668248,0.86698446,104040.0,104030.0,0.19231241]
[1748866675546,0.76698446,104040.0,104030.0,0.19231241]
[1748866675749,0.76698446,104040.0,104030.0,0.28601241]
[1748866675947,0.5872502,104040.0,104030.0,0.28601241]
[1748866677049,0.5852502,104040.0,104030.0,0.28601241]
[1748866677563,0.3608,104040.0,104030.0,0.43494667]
[1748866677753,0.5529502,104040.0,104030.0,0.43494667]
[1748866678553,0.3608,104040.0,104030.0,0.43494667]
[1748866678952,0.5529502,104040.0,104030.0,0.43494667]
[1748866679548,0.3608,104040.0,104030.0,0.43494667]
[1748866680356,0.5529502,104040.0,104030.0,0.43494667]
[1748866680651,0.3608,104040.0,104030.0,0.43494667]
[1748866680850,0.5529502,104040.0,104030.0,0.43494667]
[1748866681947,0.47044595,104050.0,104040.0,0.1921502]
[1748866682252,0.07674595,104050.0,104040.0,0.95252446]
[1748866682454,0.99376467,104060.0,104050.0,0.1921317]
[1748866682653,0.46094371,104060.0,104050.0,0.43626596]
[1748866682848,0.00014371,104060.0,104050.0,0.79706596]
[1748866683243,0.07616207,104060.0,104050.0,0.79706596]
[1748866683851,0.07916207,104060.0,104050.0,0.79706596]
[1748866684051,0.08216207,104060.0,104050.0,0.79706596]
[1748866684449,0.08116207,104060.0,104050.0,1.24226596]
[1748866684745,0.00514371,104060.0,104050.0,1.24226596]
[1748866684958,0.00314371,104060.0,104050.0,1.24226596]
[1748866687958,0.00314371,104060.0,104050.0,0.88146596]
[1748866688261,0.00314371,104060.0,104050.0,1.24226596]
[1748866688754,0.00314371,104060.0,104050.0,0.88146596]
[1748866689763,0.00314371,104060.0,104050.0,0.43626596]
[1748866689963,0.00314371,104060.0,104050.0,0.98610596]
[1748866690558,0.00314371,104060.0,104050.0,1.34690596]
[1748866692453,0.00314371,104060.0,104050.0,0.43626596]
[1748866692654,0.00314371,104060.0,104050.0,0.98554596]
[1748866693659,0.19525701,104060.0,104050.0,0.43626596]
[1748866693865,0.61955701,104060.0,104050.0,0.98554596]
[1748866694061,0.61955701,104060.0,104050.0,0.43646596]
[1748866694358,0.61955701,104060.0,104050.0,0.2885317]
[1748866694660,0.79919127,104060.0,104050.0,0.8376117]
[1748866694855,0.79919127,104060.0,104050.0,0.8378117]
[1748866695051,0.79919127,104060.0,104050.0,0.8376117]
[1748866695264,0.79919127,104060.0,104050.0,0.3931717]
[1748866695470,0.79919127,104060.0,104050.0,0.8378117]
[1748866696165,0.65125701,104060.0,104050.0,0.8378117]
[1748866697969,0.75125701,104060.0,104050.0,0.8378517]
[1748866698154,0.89919127,104060.0,104050.0,0.0002]
[1748866698359,1.10749467,104060.0,104050.0,0.6369717]
[1748866698665,1.10749467,104060.0,104050.0,0.6367717]
[1748866698865,1.10749467,104060.0,104050.0,0.6369717]
[1748866699169,1.10749467,104060.0,104050.0,0.0002]
[1748866699368,1.10749467,104060.0,104050.0,0.44488]
[1748866699565,1.10749467,104060.0,104050.0,0.44468]
[1748866699754,0.1921318,104050.0,104040.0,0.440878]
[1748866700082,0.86186606,104050.0,104040.0,0.10464]
[1748866700361,1.07016946,104050.0,104040.0,0.7417902]
[1748866700664,0.8222351,104050.0,104040.0,0.7419902]
[1748866700858,0.8222351,104050.0,104040.0,0.8059902]
[1748866701053,0.6139317,104050.0,104040.0,0.8359902]
[1748866701558,0.4218,104050.0,104040.0,0.8359902]
[1748866701766,0.6139318,104050.0,104040.0,0.98392446]
[1748866702666,0.6139318,104050.0,104040.0,0.8359902]
[1748866702872,0.4218,104050.0,104040.0,0.8359902]
[1748866703060,0.6139312,104050.0,104040.0,0.8359902]
[1748866703662,0.4218,104050.0,104040.0,0.8359902]
[1748866704059,0.061,104050.0,104040.0,0.98392446]
[1748866704260,0.4218,104050.0,104040.0,0.98392446]
[1748866704667,0.39264371,104060.0,104050.0,0.1921312]
[1748866704970,0.39264371,104060.0,104050.0,0.40426546]
[1748866704971,0.45334371,104060.0,104050.0,0.40426546]
[1748866705269,0.64545641,104060.0,104050.0,0.40426546]
[1748866705860,0.64545641,104060.0,104050.0,0.2563312]
[1748866706265,1.15619067,104060.0,104050.0,0.7419712]
[1748866706463,1.15719067,104060.0,104050.0,0.7419712]
[1748866706870,1.15719067,104060.0,104050.0,0.7421712]
[1748866707583,1.15719067,104060.0,104050.0,0.1923312]
[1748866707766,1.15719067,104060.0,104050.0,0.7422912]
[1748866707962,1.15719067,104060.0,104050.0,0.1923312]
[1748866708163,1.15719067,104060.0,104050.0,0.7422512]
[1748866708365,1.15719067,104060.0,104050.0,0.7422112]
[1748866709762,1.15719067,104060.0,104050.0,0.1923312]
[1748866709967,1.15719067,104060.0,104050.0,0.7420912]
[1748866710269,1.25719067,104060.0,104050.0,0.2067412]
[1748866710473,1.25719067,104060.0,104050.0,0.6522612]
[1748866710663,1.25719067,104060.0,104050.0,0.6520212]
[1748866710863,1.15719067,104060.0,104050.0,0.2067412]
[1748866711065,1.00925641,104060.0,104050.0,0.6521812]
[1748866711371,1.25719067,104060.0,104050.0,0.6522212]
[1748866711569,1.25719067,104060.0,104050.0,0.2067412]
[1748866712069,1.25719067,104060.0,104050.0,0.6522212]
[1748866712272,1.25719067,104060.0,104050.0,0.6521812]
[1748866712569,1.25719067,104060.0,104050.0,0.6521412]
[1748866712774,1.15719067,104060.0,104050.0,0.2067412]
[1748866713072,1.25719067,104060.0,104050.0,0.2067412]
[1748866714072,1.15719067,104060.0,104050.0,0.2067412]
[1748866714665,1.00925641,104060.0,104050.0,0.2067412]
[1748866715370,1.00925641,104060.0,104050.0,0.2698412]
[1748866717368,1.00925641,104060.0,104050.0,0.44897546]
[1748866718374,1.00925641,104060.0,104050.0,0.3010412]
[1748866720673,1.00925641,104060.0,104050.0,0.8512412]
[1748866721266,1.21755981,104060.0,104050.0,0.8512412]
[1748866721461,0.85675981,104060.0,104050.0,0.8512412]
[1748866722071,0.42464371,104060.0,104050.0,0.99917546]
[1748866722277,0.61675551,104060.0,104050.0,0.99917546]
[1748866722677,0.42464371,104060.0,104050.0,0.99917546]
[1748866723377,0.36394371,104060.0,104050.0,0.99917546]
[1748866727764,0.36394371,104060.0,104050.0,0.44897546]
[1748866728079,0.42474371,104060.0,104050.0,0.99901546]
[1748866728281,0.42474371,104060.0,104050.0,0.99921546]
[1748866729079,0.42474371,104060.0,104050.0,0.4060812]
[1748866729263,0.42474371,104060.0,104050.0,0.8511212]
[1748866729783,0.42474371,104060.0,104050.0,0.99905546]
[1748866740885,0.36394371,104060.0,104050.0,0.99905546]
[1748866742880,0.00314371,104060.0,104050.0,1.35985546]
[1748866743473,0.00314371,104060.0,104050.0,1.2119212]
[1748866743680,0.00314371,104060.0,104050.0,1.35985546]
[1748866743880,0.06384371,104060.0,104050.0,1.35985546]
[1748866744187,0.09454371,104060.0,104050.0,1.35985546]
[1748866745189,0.09454371,104060.0,104050.0,1.35949546]
[1748866745486,0.09454371,104060.0,104050.0,0.80957546]
[1748866745487,0.28665551,104060.0,104050.0,0.80957546]
[1748866745689,0.09454371,104060.0,104050.0,1.1804012]
[1748866745887,0.09454371,104060.0,104050.0,1.32833546]
[1748866747188,0.09454371,104060.0,104050.0,0.3117812]
[1748866747383,0.79538987,104060.0,104050.0,0.7564212]
[1748866747582,0.79538987,104060.0,104050.0,0.7562212]
[1748866747986,0.79538987,104060.0,104050.0,0.7564212]
[1748866748289,0.94438347,104060.0,104050.0,0.7564212]
[1748866748586,0.79644921,104060.0,104050.0,0.90435546]
[1748866749987,0.79644921,104060.0,104050.0,0.49081546]
[1748866750186,0.79644921,104060.0,104050.0,0.93573546]
[1748866750388,0.79644921,104060.0,104050.0,0.49081546]
[1748866750689,0.79644921,104060.0,104050.0,0.93569546]
[1748866751081,0.79644921,104060.0,104050.0,0.7877612]
[1748866751276,0.79644921,104060.0,104050.0,0.7567012]
[1748866751677,0.94438347,104060.0,104050.0,0.3117812]
[1748866751887,0.94438347,104060.0,104050.0,0.01461]
[1748866752091,0.79538987,104060.0,104050.0,0.6516603]
[1748866752298,0.79538987,104060.0,104050.0,0.6518603]
[1748866752485,0.79538987,104060.0,104050.0,0.6516603]
[1748866752685,0.79538987,104060.0,104050.0,0.6518603]
[1748866752886,0.79538987,104060.0,104050.0,0.6516603]
[1748866753281,0.79538987,104060.0,104050.0,0.6518603]
[1748866753682,0.79538987,104060.0,104050.0,0.2067403]
[1748866753989,0.89538987,104060.0,104050.0,0.6517403]
[1748866754186,0.89538987,104060.0,104050.0,0.2067403]
[1748866754387,0.79538987,104060.0,104050.0,0.2067403]
[1748866754590,0.79538987,104060.0,104050.0,0.6517003]
[1748866754786,0.79538987,104060.0,104050.0,0.64285425]
[1748866755385,1.00379713,104060.0,104050.0,0.64285425]
[1748866755687,1.10379713,104060.0,104050.0,0.64285425]
[1748866755885,1.00379713,104060.0,104050.0,0.64285425]
[1748866756482,1.10379713,104060.0,104050.0,0.19789425]
[1748866756690,1.10379713,104060.0,104050.0,0.64265425]
[1748866756989,1.00379713,104060.0,104050.0,0.64265425]
[1748866757191,1.00379713,104060.0,104050.0,0.64245425]
[1748866757192,0.79538987,104060.0,104050.0,0.64245425]
[1748866757387,0.79538987,104060.0,104050.0,0.64265425]
[1748866757785,0.89538987,104060.0,104050.0,0.64265425]
[1748866757985,0.92889405,104060.0,104050.0,0.64265425]
[1748866758587,1.71983805,104060.0,104050.0,0.00576395]
[1748866758788,1.71983805,104060.0,104050.0,5e-08]
[1748866758789,1.76983805,104060.0,104050.0,5e-08]
[1748866759100,1.86983805,104060.0,104050.0,5e-08]
[1748866759282,1.87913513,104060.0,104050.0,0.00020005]
[1748866761086,1.87913513,104060.0,104050.0,0.01461005]
[1748866762597,1.87917513,104060.0,104050.0,0.01461005]
[1748866763091,2.22344087,104060.0,104050.0,0.01461005]
[1748866763292,2.47625513,104060.0,104050.0,0.01461005]
[1748866764198,2.22625513,104060.0,104050.0,0.01461005]
[1748866764795,1.77211805,104060.0,104050.0,0.01461005]
[1748866765001,2.16711805,104060.0,104050.0,0.00654978]
[1748866765202,1.68590997,104060.0,104050.0,0.00654978]
[1748866765499,1.83384423,104060.0,104050.0,0.00654978]
[1748866767095,2.17994823,104060.0,104050.0,0.00654978]
[1748866767695,1.97211805,104060.0,104050.0,0.00654978]
[1748866767896,1.52109405,104060.0,104050.0,0.00654978]
[1748866768093,2.07089405,104060.0,104050.0,0.00674978]
[1748866769702,2.27864459,104060.0,104050.0,0.00674978]
[1748866771990,1.72884459,104060.0,104050.0,0.00674978]
[1748866772194,1.72884459,104060.0,104050.0,0.19888008]
[1748866772395,1.52109405,104060.0,104050.0,0.26258008]
[1748866772595,1.83380167,104060.0,104050.0,0.26258008]
[1748866772896,1.83380167,104060.0,104050.0,0.07044978]
[1748866773600,1.72888167,104060.0,104050.0,0.26258008]
[1748866774503,1.72888167,104060.0,104050.0,0.03904978]
[1748866775190,1.72888167,104060.0,104050.0,0.00674978]
[1748866775592,1.82498567,104060.0,104050.0,0.00654978]
[1748866775797,1.87498567,104060.0,104050.0,0.00674978]
[1748866775995,2.17262712,104060.0,104050.0,0.00674978]
[1748866776194,2.17262712,104060.0,104050.0,0.00654978]
[1748866776400,2.17262712,104060.0,104050.0,0.00674978]
[1748866776609,1.87498567,104060.0,104050.0,0.00674978]
[1748866776803,1.66719805,104060.0,104050.0,0.00674978]
[1748866777003,1.66719805,104060.0,104050.0,8e-08]
[1748866777207,1.17499805,104060.0,104050.0,8e-08]
[1748866777911,0.1921488,104040.0,104030.0,0.25481081]
[1748866778206,1.38893448,104040.0,104030.0,0.25481081]
[1748866778406,1.48503448,104040.0,104030.0,0.25481081]
[1748866778809,1.48503448,104040.0,104030.0,0.06264371]
[1748866779113,1.48503448,104040.0,104030.0,0.06464371]
[1748866779312,1.63296874,104040.0,104030.0,0.06464371]
[1748866780110,1.33710022,104040.0,104030.0,0.27122091]
[1748866780410,1.48503448,104040.0,104030.0,0.27122091]
[1748866780608,1.48503448,104040.0,104030.0,0.27342091]
[1748866781614,1.48803448,104040.0,104030.0,0.27142091]
[1748866782003,1.49103448,104040.0,104030.0,0.26942091]
[1748866783318,1.49103448,104040.0,104030.0,0.07725371]
[1748866783916,1.63896874,104040.0,104030.0,0.26942091]
[1748866784413,1.63896874,104040.0,104030.0,0.07725371]
[1748866785104,1.63896874,104040.0,104030.0,0.07705371]
[1748866785304,1.43087815,104040.0,104030.0,0.07725371]
[1748866787610,1.42787815,104040.0,104030.0,0.07725371]
[1748866787805,1.43087815,104040.0,104030.0,0.04725371]
[1748866788405,1.43087815,104040.0,104030.0,0.07945371]
[1748866789212,1.13500963,104040.0,104030.0,0.07945371]
[1748866789417,1.28294389,104040.0,104030.0,0.07945371]
[1748866790214,1.43087815,104040.0,104030.0,0.07945371]
[1748866790412,1.13500963,104040.0,104030.0,0.07945371]
[1748866790613,1.43087815,104040.0,104030.0,0.07945371]
[1748866790812,1.43087815,104040.0,104030.0,0.27162091]
[1748866791817,1.28294389,104040.0,104030.0,0.27162091]
[1748866792114,1.28294389,104040.0,104030.0,0.07945371]
[1748866792315,1.49146121,104040.0,104030.0,0.07945371]
[1748866792909,1.28294389,104040.0,104030.0,0.27162091]
[1748866795215,1.49146121,104040.0,104030.0,0.27162091]
[1748866796315,1.63939547,104040.0,104030.0,0.27162091]
[1748866796516,1.63939547,104040.0,104030.0,0.04725371]
[1748866796819,1.63939547,104040.0,104030.0,0.23942091]
[1748866797220,2.08419547,104040.0,104030.0,0.23942091]
[1748866797518,1.87567815,104040.0,104030.0,0.23942091]
[1748866798222,1.72774389,104040.0,104030.0,0.23942091]
[1748866799415,1.93626121,104040.0,104030.0,0.23942091]
[1748866800921,1.93626121,104040.0,104030.0,0.27042091]
[1748866801824,1.93626121,104040.0,104030.0,0.07825371]
[1748866802615,1.93626121,104040.0,104030.0,0.27042091]
[1748866803324,1.49146121,104040.0,104030.0,0.27042091]
[1748866803620,1.45906121,104040.0,104030.0,0.27042091]
[1748866803809,1.42676121,104040.0,104030.0,0.27042091]
[1748866804012,1.17882695,104040.0,104030.0,0.27042091]
[1748866804212,1.29536121,104040.0,104030.0,0.27042091]
[1748866805023,1.29236121,104040.0,104030.0,0.27042091]
[1748866805626,1.14442695,104040.0,104030.0,0.27042091]
[1748866805814,1.14442695,104040.0,104030.0,0.41835517]
[1748866806014,1.14442695,104040.0,104030.0,0.86311517]
[1748866806220,1.14442695,104040.0,104030.0,0.71518091]
[1748866806712,1.29036121,104040.0,104030.0,0.71518091]
[1748866806917,1.29236121,104040.0,104030.0,0.27042091]
[1748866807117,1.29236121,104040.0,104030.0,0.71518091]
[1748866807929,1.14584389,104040.0,104030.0,0.71518091]
[1748866808329,1.35436121,104040.0,104030.0,0.71518091]
[1748866808530,1.14242695,104040.0,104030.0,0.71518091]
[1748866808827,1.29036121,104040.0,104030.0,0.71518091]
[1748866809025,1.08184389,104040.0,104030.0,0.27042091]
[1748866809225,1.18184389,104040.0,104030.0,0.07825371]
[1748866809419,1.27744389,104040.0,104030.0,0.07825371]
[1748866809622,1.42737815,104040.0,104030.0,0.07805371]
[1748866809924,1.42737815,104040.0,104030.0,0.07825371]
[1748866810127,1.42737815,104040.0,104030.0,0.04725371]
[1748866810324,1.27944389,104040.0,104030.0,0.04725371]
[1748866811323,1.27944389,104040.0,104030.0,0.23942101]
[1748866813136,1.27944389,104040.0,104030.0,0.04725371]
[1748866813336,1.42737815,104040.0,104030.0,0.01475371]
[1748866813635,1.42737815,104040.0,104030.0,0.01455371]
[1748866813826,1.42737815,104040.0,104030.0,0.01475371]
[1748866814530,1.72444389,104040.0,104030.0,0.20692091]
[1748866814733,1.72444389,104040.0,104030.0,0.27082091]
[1748866814931,1.72444389,104040.0,104030.0,0.30302091]
[1748866816431,1.27944389,104040.0,104030.0,0.30302091]
[1748866817638,1.17944389,104040.0,104030.0,0.30302091]
[1748866817833,1.27944389,104040.0,104030.0,0.30302091]
[1748866819440,1.48809131,104040.0,104030.0,0.30302091]
[1748866820852,1.63602557,104040.0,104030.0,0.04655371]
[1748866821148,1.63602557,104040.0,104030.0,0.01475371]
[1748866821347,1.68602557,104040.0,104030.0,1e-08]
[1748866821556,0.1921672,104030.0,104020.0,0.00211498]
[1748866821749,0.89640146,104030.0,104020.0,0.00211498]
[1748866822246,0.90557132,104030.0,104020.0,0.00211498]
[1748866822642,1.2036391,104030.0,104020.0,0.00211498]
[1748866823354,0.90557132,104030.0,104020.0,0.00311498]
[1748866823949,0.91457132,104030.0,104020.0,0.00311498]
[1748866824453,1.21238827,104030.0,104020.0,0.00311498]
[1748866824651,1.30197841,104030.0,104020.0,0.00211498]
[1748866824853,1.30497841,104030.0,104020.0,0.00211498]
[1748866826052,1.01635364,104030.0,104020.0,0.00211498]
[1748866828254,1.00716146,104030.0,104020.0,0.00211498]
[1748866828751,1.00716146,104030.0,104020.0,0.01653498]
[1748866829360,1.45196146,104030.0,104020.0,0.01653498]
[1748866831969,1.81276146,104030.0,104020.0,0.01653498]
[1748866832550,2.02103987,104030.0,104020.0,0.01653498]
[1748866832757,1.81276146,104030.0,104020.0,0.01653498]
[1748866833061,1.6648272,104030.0,104020.0,0.01653498]
[1748866833256,1.81276146,104030.0,104020.0,0.01653498]
[1748866833659,2.02103747,104030.0,104020.0,0.01653498]
[1748866834269,1.47147747,104030.0,104020.0,0.01653498]
[1748866837166,1.47147747,104030.0,104020.0,0.20872068]
[1748866837560,1.47147747,104030.0,104020.0,0.26952068]
[1748866838354,1.47147747,104030.0,104020.0,0.07733498]
[1748866838861,1.26320146,104030.0,104020.0,0.07733498]
[1748866839166,1.47154083,104030.0,104020.0,0.07733498]
[1748866840359,1.47154083,104030.0,104020.0,0.04723498]
[1748866841762,1.26320146,104030.0,104020.0,0.04723498]
[1748866842166,1.47162721,104030.0,104020.0,0.04723498]
[1748866842557,1.47162721,104030.0,104020.0,0.01673498]
[1748866842755,1.4716647,104030.0,104020.0,0.01673498]
[1748866843662,0.1921857,104020.0,104010.0,0.00014371]
[1748866843859,0.91674226,104020.0,104010.0,0.00014371]
[1748866844270,1.21455921,104020.0,104010.0,0.00014371]
[1748866844668,1.21455921,104020.0,104010.0,0.00034371]
[1748866844872,1.21655921,104020.0,104010.0,0.00034371]
[1748866845867,1.21955921,104020.0,104010.0,0.00034371]
[1748866846173,0.92174226,104020.0,104010.0,0.00034371]
[1748866846570,0.91674226,104020.0,104010.0,0.00034371]
[1748866846771,0.92074226,104020.0,104010.0,0.00034371]
[1748866847477,0.91974226,104020.0,104010.0,0.00034371]
[1748866848882,0.92174226,104020.0,104010.0,0.00034371]
[1748866849481,0.91974226,104020.0,104010.0,0.00034371]
[1748866850075,0.91974226,104020.0,104010.0,0.19254791]
[1748866850271,0.91974226,104020.0,104010.0,0.28664791]
[1748866851076,0.771808,104020.0,104010.0,0.28664791]
[1748866851277,0.91974226,104020.0,104010.0,0.28664791]
[1748866852485,0.91874226,104020.0,104010.0,0.28664791]
[1748866852683,0.91974226,104020.0,104010.0,0.28664791]
[1748866852870,1.12804793,104020.0,104010.0,0.28664791]
[1748866856281,1.12804793,104020.0,104010.0,0.09444371]
[1748866857677,1.12804793,104020.0,104010.0,0.28664791]
[1748866858584,0.91974226,104020.0,104010.0,0.28664791]
[1748866858882,0.91974226,104020.0,104010.0,0.09444371]
[1748866859684,0.91974226,104020.0,104010.0,0.28664791]
[1748866860585,0.91974226,104020.0,104010.0,0.09444371]
[1748866861274,0.91974226,104020.0,104010.0,0.28664791]
[1748866861275,1.12805483,104020.0,104010.0,0.28664791]
[1748866861789,0.91974226,104020.0,104010.0,0.28664791]
[1748866864994,0.88714226,104020.0,104010.0,0.28664791]
[1748866865692,1.0955338,104020.0,104010.0,0.28664791]
[1748866865989,0.88714226,104020.0,104010.0,0.28664791]
[1748866866196,0.92024226,104020.0,104010.0,0.28664791]
[1748866866385,0.92024226,104020.0,104010.0,0.09444371]
[1748866866579,0.92024226,104020.0,104010.0,0.00014371]
[1748866866779,0.92024226,104020.0,104010.0,0.00034371]
[1748866867190,0.92024226,104020.0,104010.0,0.00014371]
[1748866867191,1.06817652,104020.0,104010.0,0.00014371]
[1748866867389,0.1922042,104010.0,104000.0,0.2878227]
[1748866867592,0.89963846,104010.0,104000.0,0.3022427]
[1748866867786,1.10806254,104010.0,104000.0,0.2393427]
[1748866867983,1.10806254,104010.0,104000.0,0.3043427]
[1748866868389,1.10806254,104010.0,104000.0,0.3053427]
[1748866870195,1.10906254,104010.0,104000.0,0.3043427]
[1748866870890,1.11106254,104010.0,104000.0,0.3043427]
[1748866871294,1.18611476,104010.0,104000.0,0.3043427]
[1748866872382,1.18611476,104010.0,104000.0,0.11212]
[1748866872891,1.18611476,104010.0,104000.0,0.3043427]
[1748866872892,0.97769068,104010.0,104000.0,0.3043427]
[1748866873290,0.72975642,104010.0,104000.0,0.3043427]
[1748866873498,0.84459068,104010.0,104000.0,0.3043427]
[1748866873995,0.84359068,104010.0,104000.0,0.3043427]
[1748866874290,0.84459068,104010.0,104000.0,0.3043427]
[1748866876404,0.94561977,104010.0,104000.0,0.3043427]
[1748866876904,0.97651977,104010.0,104000.0,0.3043427]
[1748866877104,0.97651977,104010.0,104000.0,0.3041427]
[1748866877394,0.76793846,104010.0,104000.0,0.3043427]
[1748866877604,0.97652343,104010.0,104000.0,0.3043427]
[1748866877995,1.00862343,104010.0,104000.0,0.3043427]
[1748866878297,0.79903846,104010.0,104000.0,0.3043427]
[1748866878501,0.80003846,104010.0,104000.0,0.3043427]
[1748866879102,0.90003846,104010.0,104000.0,0.3041427]
[1748866879396,0.89803846,104010.0,104000.0,0.3043426]
[1748866879597,0.90003846,104010.0,104000.0,0.3043426]
[1748866879899,0.97869517,104010.0,104000.0,0.3043426]
[1748866881199,0.97869517,104010.0,104000.0,0.11212]
[1748866881389,0.97869517,104010.0,104000.0,0.3043427]
[1748866882091,0.97869517,104010.0,104000.0,0.04712]
[1748866882300,1.12662943,104010.0,104000.0,0.01462]
[1748866882690,1.12662943,104010.0,104000.0,0.01442]
[1748866882894,1.12662943,104010.0,104000.0,0.01462]
[1748866883093,1.12662943,104010.0,104000.0,0.01442]
[1748866883295,1.12662943,104010.0,104000.0,0.01462]
[1748866883906,0.83076091,104010.0,104000.0,0.01462]
[1748866884200,1.12662943,104010.0,104000.0,0.01462]
[1748866884699,1.12662943,104010.0,104000.0,0.00799249]
[1748866886495,1.42444638,104010.0,104000.0,0.00799249]
[1748866887208,1.42444638,104010.0,104000.0,0.20021519]
[1748866887399,1.42444638,104010.0,104000.0,0.00799249]
[1748866887602,1.12662943,104010.0,104000.0,0.00799249]
[1748866887899,0.97869517,104010.0,104000.0,0.00799249]
[1748866888301,1.12662943,104010.0,104000.0,0.00799249]
[1748866890099,0.97869517,104010.0,104000.0,0.00799249]
[1748866890306,1.42444638,104010.0,104000.0,0.00799249]
[1748866890696,1.42444638,104010.0,104000.0,0.00779249]
[1748866891004,1.27651212,104010.0,104000.0,0.00799249]
[1748866891207,1.12857786,104010.0,104000.0,0.20021519]
[1748866891419,1.48509849,104010.0,104000.0,0.29521519]
[1748866891800,1.18728154,104010.0,104000.0,0.29521519]
[1748866892304,0.97869517,104010.0,104000.0,0.10299249]